bitfinex/quotes_BTCUSD_20240908
["timestamp","ask_amount","ask_price","bid_price","bid_amount"]
[1725772736667,0.05797505,54621.0,54620.0,0.400474]
[1725772739511,0.05797505,54621.0,54620.0,0.402106]
[1725772740806,0.03151969,54621.0,54620.0,0.402106]
[1725772741237,0.03151969,54621.0,54620.0,0.484406]
[1725772743855,0.002816,54621.0,54620.0,1.18540318]
[1725772744102,0.002816,54621.0,54620.0,1.28740318]
[1725772744330,0.002816,54621.0,54620.0,1.28540318]
[1725772747353,0.002816,54621.0,54620.0,1.28740318]
[1725772751737,0.002816,54621.0,54620.0,1.28540318]
[1725772752373,0.002816,54621.0,54620.0,1.28740318]
[1725772754256,0.002816,54621.0,54620.0,1.28540318]
[1725772755132,0.002816,54621.0,54620.0,1.28740318]
[1725772755343,0.001816,54621.0,54620.0,1.27940318]
[1725772755592,0.000816,54621.0,54620.0,1.26940318]
[1725772755813,0.002816,54621.0,54620.0,1.29340318]
[1725772756236,0.000816,54621.0,54620.0,1.26940318]
[1725772756451,0.001816,54621.0,54620.0,1.28340318]
[1725772756919,0.001816,54621.0,54620.0,1.193638]
[1725772757132,0.001816,54621.0,54620.0,1.28140318]
[1725772757790,0.002816,54621.0,54620.0,1.29540318]
[1725772761620,0.002816,54621.0,54620.0,2.54530318]
[1725772763048,0.002816,54621.0,54620.0,2.54730318]
[1725772764076,0.128118,54637.0,54633.0,0.128126]
[1725772764303,0.33847556,54644.0,54636.0,0.128118]
[1725772764677,0.128111,54640.0,54636.0,0.128118]
[1725772766555,0.33859112,54644.0,54635.0,0.128121]
[1725772766556,0.128113,54639.0,54635.0,0.128121]
[1725772767030,0.1927,54637.0,54635.0,0.128121]
[1725772768007,0.22140027,54637.0,54635.0,0.128121]
[1725772770775,0.22240027,54637.0,54635.0,0.128121]
[1725772771174,0.22140027,54637.0,54635.0,0.129121]
[1725772771369,0.00774418,54636.0,54635.0,0.129121]
[1725772771628,0.00774418,54636.0,54635.0,0.130121]
[1725772772699,0.00774418,54636.0,54635.0,0.129121]
[1725772773155,0.00774418,54636.0,54635.0,0.128121]
[1725772773570,0.00774418,54636.0,54635.0,0.129121]
[1725772774427,0.00856018,54636.0,54635.0,0.129121]
[1725772774657,0.00856018,54636.0,54635.0,0.131121]
[1725772774865,0.00856018,54636.0,54635.0,0.130121]
[1725772775813,0.00856018,54636.0,54635.0,0.132121]
[1725772776035,0.02771685,54636.0,54635.0,0.132121]
[1725772777812,0.02771685,54636.0,54635.0,0.130121]
[1725772779087,0.02771685,54636.0,54635.0,0.128121]
[1725772779317,0.05641687,54636.0,54635.0,0.128121]
[1725772784656,0.05641687,54636.0,54635.0,0.129121]
[1725772785069,0.05641687,54636.0,54635.0,0.128121]
[1725772785689,0.02771685,54636.0,54635.0,0.129751]
[1725772786028,0.02771685,54636.0,54635.0,0.130751]
[1725772786238,0.02771685,54636.0,54635.0,0.129751]
[1725772787010,0.05463288,54636.0,54635.0,0.129751]
[1725772788824,0.08333273,54636.0,54635.0,0.00163]
[1725772788996,0.08333273,54636.0,54635.0,0.129752]
[1725772789197,0.16576442,54636.0,54635.0,0.129752]
[1725772791096,0.08333273,54636.0,54635.0,0.129752]
[1725772791309,0.16589596,54636.0,54635.0,0.129752]
[1725772793022,0.16589596,54636.0,54635.0,0.130752]
[1725772793626,0.16589596,54636.0,54635.0,0.131752]
[1725772795547,0.13719611,54636.0,54635.0,0.131752]
[1725772795767,0.13719611,54636.0,54635.0,0.130752]
[1725772795987,0.13719611,54636.0,54635.0,0.13068723]
[1725772796218,0.0077548,54636.0,54635.0,0.13268723]
[1725772796414,0.000815,54637.0,54635.0,0.13268723]
[1725772796630,0.000815,54637.0,54635.0,0.13068723]
[1725772796829,0.000815,54637.0,54635.0,0.12968723]
[1725772797036,0.000815,54637.0,54635.0,0.13068723]
[1725772797250,0.000815,54637.0,54635.0,0.13268723]
[1725772797480,0.000815,54637.0,54635.0,0.12968723]
[1725772797906,0.000815,54637.0,54635.0,0.13068723]
[1725772798323,0.000815,54637.0,54635.0,0.13168723]
[1725772798538,0.02759499,54637.0,54635.0,0.13168723]
[1725772798762,0.02951441,54637.0,54635.0,0.13168723]
[1725772800057,0.02951441,54637.0,54636.0,0.12812]
[1725772800409,0.05681229,54637.0,54636.0,0.12812]
[1725772801065,0.05781229,54637.0,54636.0,0.12812]
[1725772801435,0.02911288,54637.0,54636.0,0.12812]
[1725772801638,0.02811288,54637.0,54636.0,0.12812]
[1725772802918,0.110676,54637.0,54636.0,0.12812]
[1725772803153,0.14037318,54637.0,54636.0,0.12812]
[1725772803377,0.05781006,54637.0,54636.0,0.12812]
[1725772803799,0.05760818,54637.0,54636.0,0.12812]
[1725772804040,0.1401713,54637.0,54636.0,0.12812]
[1725772804407,0.05760818,54637.0,54636.0,0.12812]
[1725772805262,0.1401713,54637.0,54636.0,0.12812]
[1725772806095,0.05760818,54637.0,54636.0,0.12812]
[1725772806351,0.14017575,54637.0,54636.0,0.21152]
[1725772806828,0.14017575,54637.0,54636.0,0.576161]
[1725772807054,0.14017575,54637.0,54636.0,0.31992]
[1725772807289,0.384361,54636.0,54635.0,0.00156523]
[1725772807567,1.087443,54636.0,54635.0,0.00156523]
[1725772807809,1.32142236,54636.0,54635.0,0.00156523]
[1725772808044,1.21754398,54636.0,54635.0,0.00156523]
[1725772808259,1.20754398,54636.0,54635.0,0.00156523]
[1725772808704,1.3726074,54636.0,54635.0,0.00156523]
[1725772809619,1.20754398,54636.0,54635.0,0.00156523]
[1725772810731,1.20754398,54636.0,54635.0,0.00256523]
[1725772811199,1.22591711,54636.0,54635.0,0.00356523]
[1725772811423,1.35403711,54636.0,54635.0,0.00356523]
[1725772811646,1.21654398,54636.0,54635.0,0.00356523]
[1725772812098,1.20754398,54636.0,54635.0,0.00256523]
[1725772812326,1.12691958,54636.0,54635.0,0.00256523]
[1725772812771,1.12691958,54636.0,54635.0,0.00156523]
[1725772812976,1.12691958,54636.0,54635.0,0.00256523]
[1725772813607,1.12691958,54636.0,54635.0,0.00456523]
[1725772813608,1.02494398,54636.0,54635.0,0.00456523]
[1725772813866,1.02494398,54636.0,54635.0,0.00256523]
[1725772814085,1.01694398,54636.0,54635.0,0.00156523]
[1725772814301,1.02594398,54636.0,54635.0,0.00256523]
[1725772814967,1.01694398,54636.0,54635.0,0.00156523]
[1725772815186,1.02494398,54636.0,54635.0,0.00256523]
[1725772815400,1.07734398,54636.0,54635.0,0.00256523]
[1725772815830,1.07734398,54636.0,54635.0,0.00356523]
[1725772816055,1.07734398,54636.0,54635.0,0.00256523]
[1725772816489,1.07734398,54636.0,54635.0,0.00356523]
[1725772817330,1.07934398,54636.0,54635.0,0.00356523]
[1725772817547,1.08820248,54636.0,54635.0,0.00356523]
[1725772817969,1.22569561,54636.0,54635.0,0.00356523]
[1725772818177,1.25440099,54636.0,54635.0,0.00356523]
[1725772818385,1.22483711,54636.0,54635.0,0.00356523]
[1725772818632,1.11604977,54636.0,54635.0,0.00356523]
[1725772818885,1.11804977,54636.0,54635.0,0.00356523]
[1725772820815,1.05364977,54636.0,54635.0,0.00356523]
[1725772821263,1.16348574,54636.0,54635.0,0.00356523]
[1725772822407,1.05364977,54636.0,54635.0,0.00356523]
[1725772823303,1.16346416,54636.0,54635.0,0.00356523]
[1725772823525,1.16427916,54636.0,54635.0,0.00356523]
[1725772825665,1.13557337,54636.0,54635.0,0.00356523]
[1725772827067,0.51232619,54636.0,54635.0,0.19036523]
[1725772827274,0.4025118,54636.0,54635.0,0.19036523]
[1725772827705,0.76856719,54636.0,54635.0,0.00356523]
[1725772829274,0.79727101,54636.0,54635.0,0.00356523]
[1725772833605,0.81642768,54636.0,54635.0,0.00356523]
[1725772834061,1.09566868,54636.0,54635.0,0.00356523]
[1725772834311,0.98585429,54636.0,54635.0,0.00356523]
[1725772835615,1.09443286,54636.0,54635.0,0.00356523]
[1725772836236,1.09643286,54636.0,54635.0,0.00356523]
[1725772837062,1.09443286,54636.0,54635.0,0.00356523]
[1725772838987,1.12313784,54636.0,54635.0,0.00356523]
[1725772839615,1.12513784,54636.0,54635.0,0.00356523]
[1725772839837,1.12313784,54636.0,54635.0,0.00356523]
[1725772842650,0.97651965,54636.0,54635.0,0.00356523]
[1725772842865,0.97851965,54636.0,54635.0,0.00356523]
[1725772844085,0.97651965,54636.0,54635.0,0.00356523]
[1725772845687,0.94781467,54636.0,54635.0,0.00356523]
[1725772847441,0.97440486,54636.0,54635.0,0.00356523]
[1725772848615,0.97540486,54636.0,54635.0,0.00356523]
[1725772848815,0.97440486,54636.0,54635.0,0.00356523]
[1725772848953,1.00310848,54636.0,54635.0,0.00356523]
[1725772850916,1.16806718,54636.0,54635.0,0.00356523]
[1725772852702,1.00310848,54636.0,54635.0,0.00356523]
[1725772855562,0.97440486,54636.0,54635.0,0.00356523]
[1725772856687,1.13951524,54636.0,54635.0,0.00356523]
[1725772856887,0.97440486,54636.0,54635.0,0.00356523]
[1725772857108,1.13951596,54636.0,54635.0,0.00356523]
[1725772857322,1.13951795,54636.0,54635.0,0.00356523]
[1725772857537,1.13951605,54636.0,54635.0,0.00356523]
[1725772857985,1.13951722,54636.0,54635.0,0.00356523]
[1725772858592,1.13951815,54636.0,54635.0,0.00356523]
[1725772858848,1.16822104,54636.0,54635.0,0.00356523]
[1725772860362,0.002,54635.0,54633.0,0.15205702]
[1725772860571,0.640765,54622.0,54621.0,0.43431807]
[1725772860791,0.384466,54621.0,54620.0,0.001632]
[1725772861453,0.4131724,54621.0,54620.0,0.001632]
[1725772862369,0.0287064,54621.0,54620.0,0.386106]
[1725772862583,0.08256412,54633.0,54620.0,0.101632]
[1725772862797,0.004,54635.0,54631.0,0.256264]
[1725772863003,0.000815,54636.0,54634.0,0.128123]
[1725772863242,0.000815,54636.0,54628.0,0.256275]
[1725772863243,0.09156412,54635.0,54633.0,0.001]
[1725772863464,0.09156412,54635.0,54634.0,0.1819]
[1725772863733,0.08256412,54635.0,54634.0,0.1819]
[1725772863943,0.000815,54636.0,54633.0,0.1819]
[1725772864208,0.001,54635.0,54633.0,0.1819]
[1725772864416,0.001,54635.0,54632.0,0.128129]
[1725772864637,0.001,54635.0,54634.0,0.0812]
[1725772864858,0.001,54635.0,54634.0,0.1849]
[1725772865501,0.21146038,54636.0,54635.0,0.1849]
[1725772866158,0.21464422,54636.0,54635.0,0.1849]
[1725772866782,0.21464422,54636.0,54635.0,0.1889]
[1725772867007,0.21464422,54636.0,54635.0,0.1869]
[1725772867216,0.13211984,54636.0,54635.0,0.1869]
[1725772867463,0.13211984,54636.0,54635.0,0.1889]
[1725772867665,0.21464422,54636.0,54635.0,0.1869]
[1725772868681,0.13211984,54636.0,54635.0,0.1849]
[1725772868892,0.13411984,54636.0,54635.0,0.1849]
[1725772870342,0.21961806,54636.0,54635.0,0.1849]
[1725772871457,0.13711984,54636.0,54635.0,0.1849]
[1725772871683,0.21961806,54636.0,54635.0,0.1849]
[1725772871884,0.13711984,54636.0,54635.0,0.1849]
[1725772872091,0.16581991,54636.0,54635.0,0.1849]
[1725772872512,0.24831813,54636.0,54635.0,0.1849]
[1725772872935,0.16581991,54636.0,54635.0,0.1849]
[1725772874026,0.24829223,54636.0,54635.0,0.1849]
[1725772874245,0.16581991,54636.0,54635.0,0.1849]
[1725772874455,0.24828962,54636.0,54635.0,0.1849]
[1725772874894,0.16581991,54636.0,54635.0,0.1849]
[1725772876429,0.17151462,54636.0,54635.0,0.1849]
[1725772877446,0.25398273,54636.0,54635.0,0.1849]
[1725772877811,0.17151462,54636.0,54635.0,0.1849]
[1725772878629,0.42775562,54636.0,54635.0,0.1849]
[1725772878806,0.50720776,54636.0,54635.0,0.1849]
[1725772879151,0.53475324,54636.0,54635.0,0.1849]
[1725772879391,0.76529417,54636.0,54635.0,0.1849]
[1725772879596,0.65529655,54636.0,54635.0,0.1849]
[1725772879804,0.65029655,54636.0,54635.0,0.1849]
[1725772880019,0.65329655,54636.0,54635.0,0.1849]
[1725772880244,0.65529655,54636.0,54635.0,0.1849]
[1725772880450,0.21185873,54636.0,54626.0,0.0812]
[1725772880678,0.128141,54627.0,54626.0,0.0812]
[1725772880886,0.384424,54627.0,54626.0,0.0812]
[1725772881116,0.64961033,54627.0,54626.0,0.0812]
[1725772881547,0.64072,54626.0,54625.0,0.1037]
[1725772881745,0.72317837,54626.0,54625.0,0.1037]
[1725772882858,0.72517837,54626.0,54625.0,0.1037]
[1725772883072,0.7538832,54626.0,54625.0,0.1037]
[1725772883274,0.7518832,54626.0,54625.0,0.1037]
[1725772883605,0.67442483,54626.0,54625.0,0.1037]
[1725772883811,0.640742,54624.0,54623.0,0.0812]
[1725772884694,0.64398099,54624.0,54623.0,0.0812]
[1725772885076,0.640765,54622.0,54621.0,0.001632]
[1725772885306,0.81098855,54622.0,54621.0,0.001632]
[1725772885518,1.01107639,54622.0,54621.0,0.001632]
[1725772885743,0.92331121,54622.0,54621.0,0.001632]
[1725772887140,0.92331121,54622.0,54621.0,0.085132]
[1725772888189,0.92431121,54622.0,54621.0,0.085132]
[1725772888897,0.9520186,54622.0,54621.0,0.085132]
[1725772889126,0.9530186,54622.0,54621.0,0.085132]
[1725772889323,0.9610186,54622.0,54621.0,0.085132]
[1725772890927,0.7047126,54622.0,54621.0,0.085132]
[1725772891135,0.6967126,54622.0,54621.0,0.085132]
[1725772891578,0.70331729,54622.0,54621.0,0.085132]
[1725772894111,0.95962329,54622.0,54621.0,0.001632]
[1725772894377,0.97162329,54622.0,54621.0,0.001632]
[1725772894590,1.05542329,54622.0,54621.0,0.001632]
[1725772895450,1.05323929,54622.0,54621.0,0.001632]
[1725772895655,1.13434874,54622.0,54621.0,0.001632]
[1725772895858,1.0365319,54622.0,54621.0,0.002632]
[1725772896290,1.0365319,54622.0,54621.0,0.001632]
[1725772896505,1.14632877,54622.0,54621.0,0.001632]
[1725772896753,1.14632877,54622.0,54621.0,0.002632]
[1725772896975,1.14832877,54622.0,54621.0,0.002632]
[1725772897411,1.13532877,54622.0,54621.0,0.001632]
[1725772898308,1.0395319,54622.0,54621.0,0.001632]
[1725772898737,1.0395319,54622.0,54621.0,0.002632]
[1725772898738,1.0385319,54622.0,54621.0,0.002632]
[1725772898947,1.06724167,54622.0,54621.0,0.002632]
[1725772899153,1.06724167,54622.0,54621.0,0.001632]
[1725772899154,1.06624167,54622.0,54621.0,0.001632]
[1725772899368,1.04661945,54622.0,54621.0,0.001632]
[1725772899521,1.05961945,54622.0,54621.0,0.002632]
[1725772900325,1.04661945,54622.0,54621.0,0.001632]
[1725772900557,1.04461945,54622.0,54621.0,0.001632]
[1725772900753,1.05761945,54622.0,54621.0,0.002632]
[1725772901949,1.05961945,54622.0,54621.0,0.002632]
[1725772902173,1.31592545,54622.0,54621.0,0.002632]
[1725772902408,0.909088,54621.0,54620.0,0.001632]
[1725772902640,0.128174,54613.0,54612.0,0.001632]
[1725772902880,0.897221,54613.0,54612.0,0.001632]
[1725772903117,0.920221,54613.0,54612.0,0.001632]
[1725772903302,0.9489336,54613.0,54612.0,0.001632]
[1725772905515,0.9529336,54613.0,54612.0,0.001632]
[1725772906617,0.96167434,54613.0,54612.0,0.001632]
[1725772907459,0.98846807,54613.0,54612.0,0.001632]
[1725772911428,0.98846807,54613.0,54612.0,0.085832]
[1725772913712,0.97972733,54613.0,54612.0,0.085832]
[1725772921216,0.95101473,54613.0,54612.0,0.085832]
[1725772921794,0.95101473,54613.0,54612.0,0.001632]
[1725772922299,1.21936373,54613.0,54612.0,0.001632]
[1725772922639,1.35650462,54613.0,54612.0,0.001632]
[1725772923001,1.57061927,54613.0,54612.0,0.001632]
[1725772923222,1.56861927,54613.0,54612.0,0.001632]
[1725772923441,1.56661927,54613.0,54612.0,0.001632]
[1725772923653,1.58061927,54613.0,54612.0,0.002632]
[1725772923863,1.58061927,54613.0,54612.0,0.001632]
[1725772924331,1.44347838,54613.0,54612.0,0.002632]
[1725772924760,1.45747838,54613.0,54612.0,0.002632]
[1725772925404,1.47747838,54613.0,54612.0,0.001632]
[1725772925631,1.45344599,54613.0,54612.0,0.001632]
[1725772925849,1.45344599,54613.0,54612.0,0.002632]
[1725772926064,1.45344599,54613.0,54612.0,0.001632]
[1725772926065,1.43944599,54613.0,54612.0,0.001632]
[1725772926290,1.4321567,54613.0,54612.0,0.001632]
[1725772926525,1.4321567,54613.0,54612.0,0.002632]
[1725772926526,1.4461567,54613.0,54612.0,0.002632]
[1725772926741,1.4321567,54613.0,54612.0,0.001632]
[1725772927003,1.4321567,54613.0,54603.0,0.00163]
[1725772927004,0.897368,54604.0,54603.0,0.00163]
[1725772927210,1.00813318,54604.0,54603.0,0.00163]
[1725772927826,0.87993818,54604.0,54603.0,0.00163]
[1725772928043,1.00813318,54604.0,54603.0,0.00163]
[1725772928301,1.01813318,54604.0,54603.0,0.00163]
[1725772928748,1.02013318,54604.0,54603.0,0.00163]
[1725772929193,1.03213318,54604.0,54603.0,0.00163]
[1725772929410,1.04413318,54604.0,54603.0,0.00163]
[1725772930710,1.30052418,54604.0,54603.0,0.00163]
[1725772930934,1.37912418,54604.0,54603.0,0.00163]
[1725772931818,1.37912418,54604.0,54594.0,0.0996]
[1725772931819,0.897515,54595.0,54594.0,0.0996]
[1725772932045,1.01828018,54595.0,54594.0,0.0996]
[1725772932315,0.384691,54589.0,54581.0,0.00164]
[1725772932538,0.407691,54589.0,54581.0,0.10164]
[1725772932754,0.43641458,54589.0,54588.0,0.18594]
[1725772933423,0.69287558,54589.0,54588.0,0.18594]
[1725772933828,0.78064076,54589.0,54588.0,0.18594]
[1725772934699,0.78164076,54589.0,54588.0,0.18594]
[1725772935135,0.78164076,54589.0,54588.0,0.18694]
[1725772935347,0.78164076,54589.0,54588.0,0.18594]
[1725772935560,0.76091718,54589.0,54588.0,0.18594]
[1725772936000,0.75991718,54589.0,54588.0,0.00164]
[1725772936211,0.76491718,54589.0,54588.0,0.00164]
[1725772936659,0.75591718,54589.0,54588.0,0.00164]
[1725772937072,0.78945802,54589.0,54588.0,0.00164]
[1725772937608,0.78245802,54589.0,54588.0,0.00164]
[1725772938034,0.78545802,54589.0,54588.0,0.00164]
[1725772938199,0.79045802,54589.0,54588.0,0.00164]
[1725772938623,0.78545802,54589.0,54588.0,0.00164]
[1725772938843,0.82018279,54589.0,54588.0,0.00164]
[1725772939054,0.81418279,54589.0,54588.0,0.00164]
[1725772939667,0.82118279,54589.0,54588.0,0.00164]
[1725772939938,0.81418279,54589.0,54588.0,0.00164]
[1725772940137,0.80718279,54589.0,54588.0,0.00164]
[1725772940341,0.55872179,54589.0,54588.0,0.08634]
[1725772940545,0.55872179,54589.0,54588.0,0.18594]
[1725772940745,0.81518279,54589.0,54588.0,0.18594]
[1725772940970,0.80718279,54589.0,54588.0,0.18594]
[1725772941376,0.81618279,54589.0,54588.0,0.18594]
[1725772941814,0.81518279,54589.0,54588.0,0.18594]
[1725772942221,0.80718279,54589.0,54588.0,0.18594]
[1725772942353,0.81418279,54589.0,54588.0,0.18594]
[1725772942557,0.72641761,54589.0,54588.0,0.18594]
[1725772943344,0.73441761,54589.0,54588.0,0.18594]
[1725772944207,0.47795661,54589.0,54588.0,0.18594]
[1725772946963,0.44923184,54589.0,54588.0,0.18594]
[1725772950167,0.47795612,54589.0,54588.0,0.18594]
[1725772951448,0.49711279,54589.0,54588.0,0.18594]
[1725772953643,0.24065179,54589.0,54588.0,0.18594]
[1725772954135,0.49711279,54589.0,54588.0,0.18594]
[1725772956116,0.21192751,54589.0,54588.0,0.18594]
[1725772959229,0.24065166,54589.0,54588.0,0.18594]
[1725772959661,0.08942166,54589.0,54588.0,0.314173]
[1725772960521,0.21765166,54589.0,54588.0,0.18594]
[1725772960745,0.24065166,54589.0,54588.0,0.18594]
[1725772960960,0.49711266,54589.0,54588.0,0.18594]
[1725772962543,0.08942166,54589.0,54588.0,0.18594]
[1725772962710,0.08942166,54589.0,54588.0,0.314173]
[1725772962941,0.08942166,54589.0,54588.0,0.18594]
[1725772965102,0.08942166,54589.0,54588.0,0.827105]
[1725772965744,0.06069751,54589.0,54588.0,0.827105]
[1725772968908,0.06069751,54589.0,54588.0,0.570639]
[1725772969752,0.256419,54599.0,54588.0,0.570639]
[1725772969753,0.10994017,54599.0,54588.0,0.09940518]
[1725772969965,0.11075617,54620.0,54613.0,0.1815]
[1725772970205,0.000816,54620.0,54615.0,0.338939]
[1725772970472,0.000816,54620.0,54619.0,0.12816]
[1725772970677,0.000816,54620.0,54619.0,0.483381]
[1725772970895,0.02710292,54620.0,54619.0,0.22706]
[1725772971344,0.000816,54620.0,54619.0,0.22706]
[1725772972631,0.002816,54620.0,54619.0,0.22706]
[1725772972845,0.005816,54620.0,54619.0,0.22706]
[1725772973259,0.001816,54620.0,54619.0,0.22706]
[1725772973466,0.000816,54620.0,54619.0,0.22706]
[1725772973674,0.002816,54620.0,54619.0,0.0989]
[1725772973911,0.002816,54620.0,54615.0,0.1815]
[1725772974106,0.000816,54620.0,54615.0,0.309668]
[1725772974345,0.000816,54620.0,54604.0,0.0989]
[1725772974346,0.128185,54609.0,54604.0,0.0989]
[1725772974561,0.16466201,54607.0,54604.0,0.0989]
[1725772974782,0.00362763,54608.0,54604.0,0.227095]
[1725772974988,0.128182,54610.0,54604.0,0.227095]
[1725772975196,0.42102301,54611.0,54604.0,0.0989]
[1725772975197,0.023,54609.0,54604.0,0.0989]
[1725772975411,0.15481163,54609.0,54604.0,0.0989]
[1725772975624,0.128186,54608.0,54604.0,0.0999]
[1725772975829,0.128186,54608.0,54604.0,0.0989]
[1725772976279,0.00362763,54607.0,54604.0,0.0999]
[1725772976509,0.00362763,54607.0,54604.0,0.0989]
[1725772976952,0.13181563,54607.0,54604.0,0.0999]
[1725772977158,0.00362763,54607.0,54604.0,0.1009]
[1725772977370,0.00362763,54607.0,54604.0,0.229094]
[1725772977576,0.008,54608.0,54605.0,0.128193]
[1725772978056,0.007,54607.0,54605.0,0.128193]
[1725772978486,0.013,54607.0,54605.0,0.128193]
[1725772978906,0.007,54607.0,54605.0,0.128193]
[1725772979355,0.006,54608.0,54605.0,0.128193]
[1725772979568,0.03371515,54607.0,54605.0,0.128193]
[1725772979774,0.01,54607.0,54604.0,0.0989]
[1725772979991,0.005,54607.0,54604.0,0.227095]
[1725772980199,0.128184,54609.0,54604.0,0.227095]
[1725772980409,0.005,54607.0,54604.0,0.227095]
[1725772980638,0.005,54607.0,54605.0,0.128193]
[1725772980841,0.128184,54609.0,54605.0,0.128193]
[1725772981260,0.005,54607.0,54605.0,0.128193]
[1725772981477,0.01,54607.0,54605.0,0.128193]
[1725772981703,0.005,54607.0,54605.0,0.128193]
[1725772981939,0.005,54607.0,54606.0,0.384573]
[1725772982164,0.005,54607.0,54606.0,0.640955]
[1725772982576,0.128169,54615.0,54609.0,0.256367]
[1725772982796,0.128169,54615.0,54611.0,0.128178]
[1725772983014,0.128169,54615.0,54611.0,0.120178]
[1725772983242,0.128168,54616.0,54610.0,0.256362]
[1725772983466,0.128168,54616.0,54612.0,0.123175]
[1725772983691,0.014,54615.0,54612.0,0.123175]
[1725772984329,0.15688106,54616.0,54612.0,0.123175]
[1725772984567,0.04271306,54616.0,54613.0,0.128174]
[1725772984792,0.04271306,54616.0,54615.0,0.1068]
[1725772985245,0.04271306,54616.0,54615.0,0.0928]
[1725772985714,0.014,54616.0,54615.0,0.0928]
[1725772986188,0.128164,54618.0,54615.0,0.0928]
[1725772986407,0.01,54616.0,54615.0,0.0798]
[1725772986825,0.128164,54618.0,54615.0,0.0788]
[1725772987242,0.003,54616.0,54615.0,0.0788]
[1725772987866,0.128164,54618.0,54615.0,0.0788]
[1725772988092,0.128166,54617.0,54615.0,0.0788]
[1725772988957,0.15687909,54617.0,54615.0,0.0788]
[1725772991903,0.15687909,54617.0,54613.0,0.128173]
[1725772992124,0.02871309,54617.0,54613.0,0.256346]
[1725772992395,0.02871309,54617.0,54614.0,0.128172]
[1725772992607,0.02871309,54617.0,54612.0,0.0818]
[1725772992608,0.15687809,54617.0,54612.0,0.0818]
[1725772992827,0.15687809,54617.0,54613.0,0.128173]
[1725772993278,0.16087809,54617.0,54613.0,0.128173]
[1725772995659,0.132165,54617.0,54613.0,0.128173]
[1725772997757,0.13621423,54616.0,54613.0,0.128173]
[1725772998822,0.15687985,54616.0,54613.0,0.128173]
[1725772999639,0.15687985,54616.0,54612.0,0.209976]
[1725772999858,0.15887985,54616.0,54612.0,0.209976]
[1725773000504,0.15687985,54616.0,54612.0,0.209976]
[1725773001013,0.130167,54616.0,54612.0,0.209976]
[1725773001722,0.15888003,54616.0,54612.0,0.209976]
[1725773003784,0.01915667,54615.0,54612.0,0.209976]
[1725773005818,0.02015667,54615.0,54612.0,0.209976]
[1725773008861,0.04886823,54615.0,54612.0,0.209976]
[1725773009253,0.02015667,54615.0,54612.0,0.209976]
[1725773010232,0.14832667,54615.0,54612.0,0.209976]
[1725773010422,0.14832667,54615.0,54611.0,0.234978]
[1725773010816,0.17495693,54615.0,54612.0,0.128176]
[1725773011499,0.17495693,54615.0,54614.0,0.384516]
[1725773011500,0.04678693,54615.0,54614.0,0.384516]
[1725773011719,0.04578693,54615.0,54614.0,0.384516]
[1725773011931,0.07549767,54615.0,54614.0,0.72576]
[1725773012140,0.056341,54615.0,54614.0,0.82706]
[1725773012348,0.056341,54615.0,54614.0,1.08333982]
[1725773012558,0.02871074,54615.0,54614.0,1.17119225]
[1725773012775,0.13698392,54631.0,54614.0,1.17119225]
[1725773012776,0.44383579,54630.0,54625.0,0.127144]
[1725773012980,0.01915667,54627.0,54626.0,0.128143]
[1725773014422,0.01915667,54627.0,54624.0,0.442496]
[1725773014649,0.01915667,54627.0,54625.0,0.128145]
[1725773015484,0.01915667,54627.0,54624.0,0.442496]
[1725773015485,0.02015667,54627.0,54624.0,0.1862]
[1725773015888,0.01915667,54627.0,54624.0,0.1862]
[1725773016300,0.02015667,54627.0,54625.0,0.128146]
[1725773016826,0.01915667,54627.0,54625.0,0.128146]
[1725773016943,0.02015667,54627.0,54625.0,0.128146]
[1725773017674,0.02015667,54627.0,54624.0,0.1862]
[1725773017885,0.02015667,54627.0,54624.0,0.1013]
[1725773018091,0.02015667,54627.0,54623.0,0.128149]
[1725773018291,0.01915667,54627.0,54623.0,0.128149]
[1725773018752,0.14829767,54627.0,54623.0,0.128149]
[1725773018961,0.215244,54626.0,54621.0,0.256307]
[1725773019166,0.256293,54625.0,54617.0,0.256329]
[1725773019376,0.12815,54624.0,54620.0,0.128157]
[1725773019592,0.16464809,54623.0,54617.0,0.128163]
[1725773019807,0.16464809,54623.0,54614.0,0.256342]
[1725773020041,0.128161,54619.0,54615.0,0.128168]
[1725773020268,0.0871,54617.0,54614.0,0.128171]
[1725773021576,0.343432,54617.0,54613.0,0.00163]
[1725773021786,0.448232,54617.0,54613.0,0.00163]
[1725773022020,0.54915609,54615.0,54614.0,0.003]
[1725773022272,0.54915609,54615.0,54614.0,0.007]
[1725773022474,0.384516,54614.0,54613.0,0.00163]
[1725773022716,0.64086,54614.0,54613.0,0.00163]
[1725773023834,0.897204,54614.0,54613.0,0.00163]
[1725773024045,1.112104,54614.0,54613.0,0.00163]
[1725773024883,1.24947614,54614.0,54613.0,0.00163]
[1725773025089,1.25047614,54614.0,54613.0,0.00163]
[1725773025311,1.25347614,54614.0,54613.0,0.00163]
[1725773025516,1.25247614,54614.0,54613.0,0.00163]
[1725773025719,1.113104,54614.0,54613.0,0.00163]
[1725773025924,1.2260004,54614.0,54613.0,0.00163]
[1725773026810,1.116104,54614.0,54613.0,0.00163]
[1725773027730,1.011304,54614.0,54613.0,0.00156377]
[1725773028272,0.75111667,54614.0,54613.0,0.00156377]
[1725773028916,0.77982999,54614.0,54613.0,0.00156377]
[1725773033911,0.77795266,54614.0,54613.0,0.00156377]
[1725773034350,0.80095266,54614.0,54613.0,0.00156377]
[1725773035072,1.05729666,54614.0,54613.0,0.00156377]
[1725773035742,1.02858334,54614.0,54613.0,0.00156377]
[1725773038965,1.05729834,54614.0,54613.0,0.00156377]
[1725773039178,1.05811334,54614.0,54613.0,0.00156377]
[1725773039938,1.1460083,54614.0,54613.0,0.00156377]
[1725773040346,0.8896643,54614.0,54613.0,0.00156377]
[1725773040556,0.7795643,54614.0,54613.0,0.00156377]
[1725773040755,0.8614643,54614.0,54613.0,0.00156377]
[1725773041185,0.9646643,54614.0,54613.0,0.00156377]
[1725773041389,1.2210083,54614.0,54613.0,0.00156377]
[1725773042040,1.2440083,54614.0,54613.0,0.00156377]
[1725773043526,1.5103523,54614.0,54613.0,0.00156377]
[1725773043693,0.897319,54607.0,54606.0,0.001632]
[1725773043897,1.00821396,54607.0,54606.0,0.001632]
[1725773044304,1.05608807,54607.0,54606.0,0.00156529]